bitfinex/quotes_ETHUSD_20250110
["timestamp","ask_amount","ask_price","bid_price","bid_amount"]
[1736520435007,3.07097,3256.3,3256.2,0.1648217]
[1736520435429,0.02287628,3256.6,3256.2,0.1648217]
[1736520435644,0.02287628,3256.9,3256.2,0.1648217]
[1736520436040,3.07078,3256.5,3256.2,0.1648217]
[1736520436264,0.32995428,3256.4,3256.2,0.1648217]
[1736520436464,0.02287628,3256.4,3256.2,0.1648217]
[1736520436839,0.02287628,3256.7,3256.2,0.1648217]
[1736520437035,0.37,3256.7,3256.3,0.015]
[1736520437228,0.37,3256.7,3256.2,0.1648217]
[1736520437431,3.44063,3256.7,3256.2,0.1648217]
[1736520437680,3.07078,3256.5,3256.2,0.1648217]
[1736520437831,3.07097,3256.3,3256.2,0.1648217]
[1736520438032,0.02287628,3256.4,3256.2,0.1648217]
[1736520438238,3.09378628,3256.4,3256.2,0.1648217]
[1736520438439,3.07097,3256.3,3256.2,0.1648217]
[1736520438759,3.93035463,3256.3,3256.2,0.1648217]
[1736520438934,0.33226091,3256.3,3256.2,0.1648217]
[1736520439137,0.02287628,3256.3,3256.2,0.1648217]
[1736520439336,0.39287628,3256.6,3256.2,0.1648217]
[1736520439568,0.37,3256.6,3256.5,3.07078]
[1736520439773,0.37,3256.6,3256.2,0.1648217]
[1736520440003,3.07087,3256.5,3256.2,0.1648217]
[1736520440272,0.344087,3256.4,3256.2,0.1648217]
[1736520440601,0.02287628,3256.3,3256.2,0.1648217]
[1736520441449,0.37,3256.6,3256.2,0.1648217]
[1736520441450,0.02287628,3256.5,3256.2,0.1648217]
[1736520441643,3.09367628,3256.5,3256.2,0.1648217]
[1736520441845,0.02287628,3256.5,3256.2,0.1648217]
[1736520442052,3.07165,3255.6,3254.3,0.8088]
[1736520442285,0.33004128,3255.5,3254.6,3.07256]
[1736520442611,0.37,3255.4,3255.0,0.0075]
[1736520442926,0.02287628,3256.4,3255.0,3.0225]
[1736520443052,0.37,3256.3,3255.5,3.07163]
[1736520443361,0.37,3256.3,3255.1,3.93961765]
[1736520443362,0.02287628,3256.2,3255.2,0.0075]
[1736520443563,3.09396628,3256.2,3255.2,3.07193]
[1736520443761,3.07148,3255.8,3254.7,3.07245]
[1736520443972,0.02287628,3255.7,3254.8,0.015]
[1736520444284,3.07126,3256.0,3255.1,0.0075]
[1736520444488,3.07126,3256.0,3254.6,3.93286]
[1736520444489,3.07163,3255.6,3254.6,3.93284]
[1736520444695,0.02287628,3255.5,3254.6,0.8603]
[1736520444850,0.02287628,3255.5,3254.8,0.015]
[1736520445051,0.37,3256.0,3255.2,0.015]
[1736520445284,0.37,3256.2,3255.7,0.8503]
[1736520445485,0.37,3256.2,3255.2,0.8451]
[1736520445685,0.02287628,3256.1,3254.8,0.8451]
[1736520445888,3.07134,3256.0,3255.1,0.015]
[1736520446201,0.37,3256.2,3255.9,3.07132]
[1736520446403,0.37,3256.2,3255.9,0.015]
[1736520446587,0.37,3256.2,3255.4,0.8115]
[1736520446910,0.37,3256.2,3256.0,3.07117]
[1736520447090,0.37,3256.2,3255.4,3.8115]
[1736520447292,0.02287628,3256.1,3254.9,0.8423]
[1736520447604,3.07164,3255.6,3254.6,3.07255]
[1736520447805,0.02287628,3255.5,3254.6,3.07255]
[1736520448124,0.02287628,3255.5,3254.5,0.03072439]
[1736520448322,0.02287628,3255.9,3254.5,0.03822439]
[1736520448540,3.57287628,3255.9,3254.3,3.07285]
[1736520448711,0.55,3255.6,3253.9,0.8706]
[1736520448927,3.07185,3255.4,3254.1,0.0075]
[1736520449112,0.55,3255.8,3254.2,3.07286]
[1736520449113,3.40429891,3255.3,3254.2,3.07286]
[1736520449313,0.33234891,3255.3,3254.6,0.015]
[1736520449498,0.33234891,3255.3,3255.2,3.087]
[1736520449499,0.37,3255.3,3255.2,3.087]
[1736520449685,0.37,3256.1,3255.2,3.015]
[1736520449889,0.37,3256.5,3255.1,3.0]
[1736520450100,0.37,3256.5,3255.0,3.88439]
[1736520450101,3.07116,3256.1,3255.0,0.8122]
[1736520450325,0.32999228,3256.0,3254.2,0.8463]
[1736520450521,0.02287628,3256.0,3254.7,3.07247]
[1736520450707,0.02287628,3256.0,3254.2,0.8463]
[1736520450708,3.07198,3255.3,3254.3,3.07282]
[1736520450905,0.39287628,3255.2,3254.4,3.07273]
[1736520451119,0.37,3255.2,3253.8,0.848]
[1736520451457,0.02287628,3255.1,3254.4,0.0075]
[1736520451757,0.378,3255.4,3255.2,3.07193]
[1736520451957,0.02287628,3256.1,3255.2,0.0075]
[1736520452094,3.98159037,3257.0,3255.2,0.0075]
[1736520452095,0.378,3256.0,3255.2,0.0075]
[1736520452403,0.40087628,3255.9,3255.4,3.0]
[1736520452758,0.378,3255.9,3255.7,3.07147]
[1736520452903,0.378,3255.9,3255.3,3.07187]
[1736520453101,0.378,3255.9,3254.3,3.07281]
[1736520453102,0.378,3255.8,3254.5,3.69860076]
[1736520453288,0.378,3255.7,3255.0,0.0075]
[1736520453495,0.378,3255.6,3255.2,3.072]
[1736520453797,0.378,3255.5,3255.4,6.08681]
[1736520454029,0.378,3255.5,3255.2,3.0]
[1736520454030,0.378,3255.6,3255.3,3.0]
[1736520454216,0.378,3255.6,3254.5,3.07262]
[1736520454541,0.378,3255.6,3254.0,0.60806153]
[1736520454713,3.07183,3255.4,3254.4,3.07267]
[1736520454918,3.09479628,3255.3,3253.9,3.92132]
[1736520455112,3.09479628,3255.3,3254.4,3.07275]
[1736520455312,3.09479628,3255.3,3254.3,3.08783]
[1736520455526,0.02287628,3255.3,3254.5,0.015]
[1736520455706,0.02287628,3255.5,3254.7,3.07243]
[1736520455907,0.02287628,3255.5,3254.3,3.0]
[1736520456127,0.02287628,3255.5,3254.7,3.07244]
[1736520456437,3.07203,3255.2,3254.3,3.07284]
[1736520456642,0.02287628,3255.1,3254.0,0.015]
[1736520456840,0.02287628,3255.5,3254.4,0.0075]
[1736520457043,0.02287628,3255.5,3254.5,0.0075]
[1736520457340,0.02287628,3255.5,3255.1,3.07209]
[1736520457549,0.02287628,3256.0,3255.1,0.1648217]
[1736520457757,6.29358,3256.8,3255.1,0.1648217]
[1736520457758,0.378,3256.4,3255.5,0.0075]
[1736520457904,0.02287628,3256.3,3255.2,0.0075]
[1736520458104,3.07125,3256.0,3255.0,3.07217]
[1736520458304,0.02287628,3255.9,3254.3,3.07282]
[1736520458505,0.57287628,3256.3,3255.1,3.07203]
[1736520458752,0.02287628,3256.3,3255.1,3.0]
[1736520458912,0.02287628,3256.3,3255.4,3.0]
[1736520459111,0.378,3256.2,3254.9,0.03071835]
[1736520459301,0.378,3256.2,3254.8,3.826]
[1736520459302,0.02287628,3256.1,3255.2,3.07193]
[1736520459509,0.02287628,3256.1,3254.2,0.8098]
[1736520459730,0.02287628,3256.1,3253.0,0.4148217]
[1736520459731,3.07212,3255.1,3253.8,0.8611]
[1736520459919,0.40087628,3255.0,3253.9,3.10395884]
[1736520460252,0.40087628,3255.0,3254.5,3.07264]
[1736520460489,0.40087628,3255.0,3254.4,3.08023]
[1736520460690,0.40087628,3255.0,3254.3,3.0]
[1736520460914,0.40087628,3255.0,3253.8,0.8611]
[1736520461409,0.40087628,3255.0,3254.3,3.07278]
[1736520461574,3.07232,3254.9,3253.5,3.07361]
[1736520461887,0.40087628,3255.0,3253.7,0.015]
[1736520461888,0.02287628,3254.8,3253.7,0.015]
[1736520462254,0.02287628,3254.8,3253.7,0.0075]
[1736520462458,0.55,3254.6,3253.0,0.1648217]
[1736520462683,3.98159037,3254.2,3253.0,0.1648217]
[1736520462956,3.02287628,3254.1,3253.0,0.1648217]
[1736520463292,0.02287628,3254.1,3253.0,0.1648217]
[1736520463695,3.09594628,3254.1,3253.1,3.0]
[1736520463892,0.02287628,3254.1,3253.4,3.07369]
[1736520464099,3.07296,3254.2,3253.2,3.08888]
[1736520464300,3.09599628,3254.1,3253.1,0.0075]
[1736520464598,0.02287628,3254.1,3253.1,3.08897]
[1736520464757,3.09600628,3254.1,3253.1,3.08897]
[1736520465159,0.02287628,3254.1,3253.2,0.0075]
[1736520465466,0.40087628,3254.5,3253.7,0.0075]
[1736520465663,0.40087628,3254.5,3253.0,0.9709217]
[1736520465664,0.378,3254.5,3253.0,0.9709217]
[1736520465965,0.378,3254.5,3253.2,0.0225]
[1736520466187,0.378,3254.5,3254.1,3.07302]
[1736520466390,0.378,3254.5,3254.0,0.015]
[1736520466899,0.378,3254.5,3254.4,3.08776]
[1736520467100,0.378,3254.5,3254.4,6.09526]
[1736520467460,0.378,3254.5,3253.9,0.8514]
[1736520467762,0.378,3254.5,3253.9,3.0732]
[1736520467961,7.37796,3255.3,3253.6,3.0735]
[1736520467962,0.40087628,3254.4,3253.6,3.0735]
[1736520468163,0.378,3254.3,3253.5,3.0736]
[1736520468361,0.02287628,3254.2,3253.6,3.0]
[1736520468600,0.02287628,3254.2,3253.1,3.07396]
[1736520468900,0.02287628,3254.2,3253.0,0.1648217]
[1736520469201,0.02287628,3254.2,3253.4,0.0075]
[1736520469366,0.378,3254.3,3253.6,0.0075]
[1736520469690,0.378,3254.3,3254.0,0.0075]
[1736520469872,0.378,3254.3,3254.2,3.08045]
[1736520470200,0.378,3254.3,3254.2,6.08795]
[1736520470875,0.378,3254.3,3253.9,3.07315]
[1736520471071,0.378,3254.3,3253.7,3.0734]
[1736520471287,0.378,3254.3,3253.5,6.0961]
[1736520471487,0.378,3254.3,3253.0,1.0249217]
[1736520471488,0.02287628,3254.2,3253.0,1.0249217]
[1736520471694,3.07326,3253.9,3253.0,0.1648217]
[1736520471901,3.07344,3253.7,3253.0,0.1648217]
[1736520472112,0.02287628,3253.6,3253.0,0.1648217]
[1736520472308,0.02287628,3253.6,3253.0,3.2388717]
[1736520472508,3.98159037,3254.7,3253.0,3.2388717]
[1736520472509,0.378,3253.5,3253.1,0.015]
[1736520472811,0.02287628,3254.0,3253.1,0.015]
[1736520472812,0.378,3253.4,3253.1,0.015]
[1736520473001,0.378,3253.4,3253.0,0.1648217]
[1736520473219,0.02287628,3253.3,3253.0,0.1648217]
[1736520473867,0.378,3253.4,3253.1,0.0075]
[1736520474297,0.378,3253.4,3253.0,3.2388117]
[1736520474506,0.378,3253.4,3253.0,0.1648217]
[1736520475189,3.07281,3254.4,3253.4,0.015]
[1736520475190,0.378,3253.8,3253.4,0.015]
[1736520475393,0.40087628,3253.8,3253.0,0.1648217]
[1736520475599,0.378,3253.8,3253.0,0.1648217]
[1736520475901,0.02287628,3253.7,3253.0,0.1648217]
[1736520476272,3.07352,3253.6,3253.0,0.1648217]
[1736520476472,0.33251591,3253.5,3253.0,0.1648217]
[1736520476673,0.02287628,3253.5,3253.0,0.1648217]
[1736520476903,3.07381,3253.3,3253.0,0.1648217]
[1736520477103,0.02287628,3253.2,3253.0,0.1648217]
[1736520477472,3.07399,3253.1,3253.0,0.1648217]
[1736520477679,0.378,3253.8,3253.0,0.1648217]
[1736520477680,0.55,3253.5,3253.0,0.1648217]
[1736520477906,0.02287628,3253.4,3253.0,0.1648217]
[1736520478308,0.378,3253.8,3253.0,0.1648217]
[1736520478478,0.02287628,3253.7,3253.1,0.015]
[1736520478812,0.378,3253.8,3253.3,0.015]
[1736520479008,0.378,3253.8,3253.4,0.0075]
[1736520479227,0.02287628,3254.9,3253.5,3.0]
[1736520479405,3.0725,3254.7,3253.6,3.07344]
[1736520479602,0.02287628,3254.6,3253.8,3.07326]
[1736520479803,0.02287628,3254.6,3253.5,0.015]
[1736520480025,0.02287628,3254.6,3253.8,3.0733]
[1736520480236,0.02287628,3254.6,3253.9,0.0075]
[1736520480525,3.98159037,3256.7,3254.3,0.8132]
[1736520480730,0.378,3255.6,3255.0,3.07219]
[1736520481025,0.395,3255.5,3254.3,0.8132]
[1736520481242,0.41787628,3255.4,3254.3,0.8132]
[1736520481527,0.395,3255.3,3254.4,0.05322577]
[1736520481730,0.02287628,3256.0,3255.1,3.0721]
[1736520481929,0.395,3255.9,3255.0,0.0075]
[1736520482226,0.02287628,3255.8,3254.6,0.03072109]
[1736520482415,0.02287628,3255.8,3254.6,3.07255]
[1736520482747,0.02287628,3255.8,3253.5,3.07355]
[1736520482748,3.0722,3255.0,3254.0,3.07311]
[1736520483024,0.02287628,3254.9,3254.0,3.0225]
[1736520483389,3.07262,3254.6,3253.5,3.07357]
[1736520483703,3.07315,3254.0,3253.0,3.2388817]
[1736520484036,5.39287628,3254.5,3253.0,0.1648217]
[1736520484037,0.41787628,3253.9,3253.0,0.1648217]
[1736520484540,0.02287628,3253.8,3253.0,0.1648217]
[1736520485025,3.07352,3253.6,3253.0,0.1648217]
[1736520485224,0.02287628,3253.5,3253.0,0.1648217]
[1736520486088,0.02287628,3253.6,3253.0,0.1648217]
[1736520486511,3.09639628,3253.6,3253.0,0.1648217]
[1736520486893,3.09642628,3253.6,3253.0,0.1648217]
[1736520487226,0.02287628,3253.6,3253.0,0.1648217]
[1736520487432,3.07358,3253.6,3253.0,0.1648217]
[1736520487734,3.07381,3253.3,3253.0,0.1648217]
[1736520487915,0.02287628,3253.2,3253.0,0.1648217]
[1736520488116,3.0734,3253.8,3253.0,0.1648217]
[1736520488117,0.02287628,3253.7,3253.0,3.2389017]
[1736520488317,0.02287628,3253.7,3253.0,0.1648217]
[1736520488813,3.0737,3253.5,3253.0,0.1648217]
[1736520489013,0.02287628,3253.4,3253.0,0.1648217]
[1736520489207,3.09657628,3253.4,3253.0,0.1648217]
[1736520489406,0.02287628,3253.4,3253.0,0.1648217]
[1736520489994,3.07391,3253.2,3253.0,0.1648217]
[1736520490191,0.33026728,3253.1,3253.0,0.1648217]
[1736520490432,0.02287628,3253.1,3253.0,0.1648217]
[1736520490770,3.0739,3253.2,3253.0,0.1648217]
[1736520490973,0.02287628,3253.1,3253.0,0.1648217]
[1736520491575,3.09659628,3253.4,3253.0,0.1648217]
[1736520491770,0.02287628,3253.4,3253.0,0.1648217]
[1736520492144,0.02287628,3253.4,3251.7,3.07531]
[1736520492145,3.07465,3252.4,3251.2,3.07572]
[1736520492375,3.07465,3252.4,3250.8,3.90129]
[1736520492376,3.07484,3252.2,3250.8,3.90129]
[1736520492533,0.02287628,3252.1,3251.1,3.0075]
[1736520492732,3.09781628,3252.1,3251.1,0.0075]
[1736520492936,3.07526,3251.8,3250.8,0.8252]
[1736520493238,0.02287628,3251.7,3250.8,3.90133]
[1736520493441,0.02287628,3251.7,3250.8,3.90128]
[1736520493442,0.33268991,3251.7,3250.8,3.90128]
[1736520493741,0.02287628,3251.7,3250.8,0.8252]
[1736520493930,0.02287628,3251.7,3250.3,0.32832883]
[1736520493931,0.02287628,3251.7,3250.3,3.39742883]
[1736520494150,3.07598,3251.0,3250.3,0.32082883]
[1736520494493,3.07617,3250.8,3249.8,3.0]
[1736520494789,0.41787628,3250.7,3249.7,1.0357217]
[1736520495016,3.07635,3250.6,3249.7,0.1648217]
[1736520495148,0.37229891,3250.5,3249.7,0.1648217]
[1736520495649,0.02287628,3250.5,3249.7,0.1648217]
[1736520495974,3.0767,3250.3,3249.7,0.1648217]
[1736520496150,6.47133,3250.7,3249.7,0.1648217]
[1736520496151,0.02287628,3250.2,3249.7,0.1648217]
[1736520496915,3.07695,3250.0,3249.7,0.1648217]
[1736520497051,3.07711,3249.8,3249.7,0.1648217]
[1736520497249,7.60870037,3249.8,3249.7,0.1648217]
[1736520497691,3.07776,3249.2,3247.9,0.8138]
[1736520497851,0.41787628,3249.1,3248.0,3.07881]
[1736520498052,0.55,3249.0,3247.4,3.91512]
[1736520498253,4.53159037,3248.8,3247.2,3.07956]
[1736520498453,3.07844,3248.4,3247.2,3.07956]
[1736520498654,0.78611894,3248.7,3247.3,0.03079515]
[1736520498655,0.02287628,3248.3,3247.3,0.03079515]
[1736520498956,0.396,3248.4,3248.3,3.09353]
[1736520499182,0.396,3248.6,3248.3,3.015]
[1736520499387,0.396,3248.6,3248.4,0.015]
[1736520499558,0.396,3248.6,3248.5,6.09334]
[1736520499892,0.396,3249.0,3248.9,3.07794]
[1736520500203,0.396,3249.0,3248.3,0.8768]
[1736520500498,4.31,3249.4,3248.3,0.8768]
[1736520500499,4.31,3249.4,3249.1,3.07774]
[1736520500656,4.706,3249.4,3249.3,3.07758]
[1736520500853,0.396,3249.4,3249.3,6.90568]
[1736520501054,0.396,3250.4,3249.7,0.0075]
[1736520501260,0.396,3250.9,3250.7,3.07624]
[1736520501568,0.396,3250.9,3250.8,6.09116]
[1736520502097,0.02287628,3252.2,3250.4,0.0075]
[1736520502098,0.396,3251.4,3251.2,3.07578]
[1736520502293,0.396,3251.4,3251.1,3.07588]
[1736520502495,3.98159037,3252.9,3251.2,3.09078]
[1736520502496,0.396,3251.5,3251.2,3.09078]
[1736520502694,0.396,3251.5,3251.4,6.07559]
[1736520503106,0.396,3251.5,3250.8,0.825]
[1736520503424,0.396,3251.5,3250.9,0.015]
[1736520503576,0.02287628,3252.3,3251.2,0.015]
[1736520503781,8.44353,3253.6,3251.4,0.015]
[1736520503782,0.396,3252.2,3251.4,0.015]
[1736520504081,0.396,3252.1,3251.8,0.015]
[1736520504293,0.396,3252.1,3251.8,0.0075]
[1736520504604,0.396,3252.1,3251.9,3.0075]
[1736520504965,0.396,3252.1,3251.9,0.015]
[1736520505167,0.396,3252.1,3252.0,6.09003]
[1736520505395,0.396,3252.1,3251.8,0.8184]
[1736520505396,0.396,3252.1,3251.8,3.07521]
[1736520505707,0.396,3252.1,3251.0,0.8324]
[1736520505909,0.02287628,3252.0,3251.1,0.0225]
[1736520506066,0.02287628,3252.0,3251.4,3.07554]
[1736520506266,0.02287628,3252.0,3251.5,3.07549]
[1736520506686,0.02287628,3252.0,3251.2,3.07572]
[1736520507001,0.02287628,3252.0,3251.1,3.0]
[1736520507208,0.02287628,3252.0,3250.8,3.07615]
[1736520507401,0.57287628,3252.0,3250.5,0.805]
[1736520507605,0.55,3251.8,3250.1,3.07673]
[1736520507791,0.55,3251.6,3250.0,0.8314]
[1736520508107,0.02287628,3251.5,3250.2,3.07671]
[1736520508307,3.07593,3251.1,3250.0,0.8314]
[1736520508603,0.02287628,3251.0,3249.9,0.0075]
[1736520508830,0.02287628,3251.0,3249.5,0.8542]
[1736520509127,3.07626,3250.7,3249.6,3.07724]
[1736520509274,0.72650228,3250.6,3249.6,3.07724]
[1736520509474,0.396,3250.6,3249.6,0.04577108]
[1736520509808,0.02287628,3251.0,3249.9,3.015]
[1736520509809,0.396,3250.8,3249.9,3.015]
[1736520510007,0.396,3250.8,3250.2,3.07671]
[1736520510008,0.02287628,3250.7,3250.2,3.07671]
[1736520510169,0.396,3250.8,3250.1,0.03076689]
[1736520510372,0.396,3250.8,3250.1,3.07676]
[1736520510680,0.396,3250.8,3250.7,3.07626]
[1736520510881,0.02287628,3251.6,3250.5,3.95412]
[1736520511101,3.46251,3251.5,3250.4,3.0]
[1736520511281,3.46251,3251.5,3250.3,3.07662]
[1736520511282,0.40987628,3251.4,3250.6,3.0763]
[1736520511584,0.40987628,3251.4,3250.7,3.07619]
[1736520511906,5.823159,3252.3,3250.9,0.015]
[1736520511907,0.02287628,3251.7,3250.9,0.015]
[1736520512108,5.37,3252.3,3251.1,3.07579]
[1736520512109,0.387,3251.6,3251.1,3.07579]
[1736520512419,0.387,3251.6,3250.6,0.8216]
[1736520512573,0.387,3251.6,3251.3,3.07564]
[1736520512773,0.387,3251.6,3250.8,0.0075]
[1736520512976,0.02287628,3251.5,3250.5,3.07635]
[1736520513295,0.37140291,3251.5,3250.3,0.0225]
[1736520513607,0.02287628,3251.8,3251.2,3.07572]
[1736520513797,0.387,3251.7,3251.0,3.08345]
[1736520514103,0.387,3251.7,3250.5,3.08394]
[1736520514104,3.0756,3251.4,3250.4,3.07654]
[1736520514307,0.387,3251.7,3250.0,0.62749568]
[1736520514308,0.02287628,3251.3,3250.3,0.0225]
[1736520514467,0.02287628,3252.3,3250.8,0.8766]
[1736520514667,0.387,3252.2,3251.5,0.0075]
[1736520514911,1.78102085,3253.6,3251.9,0.015]
[1736520514912,0.387,3252.8,3251.9,0.015]
[1736520515231,0.387,3252.7,3252.3,3.07471]
[1736520515723,0.387,3252.7,3252.6,3.07446]
[1736520515929,0.387,3252.7,3252.5,0.0075]
[1736520516136,0.387,3252.7,3252.6,6.09696]
[1736520516276,0.387,3252.7,3251.8,0.6216416]
[1736520516277,3.07512,3251.9,3251.8,0.6216416]
[1736520516477,3.07549,3251.6,3250.4,3.07649]
[1736520516677,0.42545315,3251.5,3250.2,0.8331]
[1736520516888,0.42545315,3251.5,3250.7,3.07623]
[1736520517098,0.42545315,3251.5,3250.4,0.0075]
[1736520517697,0.42545315,3251.5,3250.2,0.8331]
[1736520517698,0.55,3251.4,3249.6,0.8195]
[1736520517895,0.55,3251.4,3250.3,3.07654]
[1736520517896,0.83416425,3251.3,3250.3,3.07654]
[1736520518119,0.83416425,3251.3,3249.7,0.02329664]
[1736520518120,0.0384599,3251.3,3250.4,3.07651]
[1736520518294,0.0384599,3251.3,3250.6,0.0075]
[1736520518475,0.0384599,3251.3,3250.8,3.07616]
[1736520518815,0.387,3251.2,3251.1,3.09088]
[1736520519010,4.311,3251.7,3251.2,0.015]
[1736520519189,0.387,3251.6,3251.5,3.0905]
[1736520519777,4.311,3251.7,3251.6,6.9419]
[1736520519979,4.311,3251.7,3251.6,3.9419]
[1736520520314,4.311,3251.7,3251.1,0.8084]
[1736520520519,4.311,3251.7,3250.1,3.07677]
[1736520520520,0.0384464,3251.6,3250.6,0.8084]
[1736520520721,0.387,3251.5,3250.6,0.8084]
[1736520521023,0.387,3251.5,3251.4,0.0075]
[1736520521324,0.387,3251.5,3251.4,0.015]
[1736520521526,0.387,3251.5,3250.7,0.0075]
[1736520521885,0.387,3251.5,3251.2,0.015]
[1736520522085,0.387,3251.5,3251.3,0.00394749]
[1736520522289,0.387,3251.5,3251.4,3.07559]
[1736520522493,0.387,3251.5,3250.9,0.0075]
[1736520522687,0.387,3251.5,3250.9,0.02327195]
[1736520522913,0.03844614,3251.4,3250.4,3.07646]
[1736520523110,0.03844614,3251.4,3250.5,0.02328431]
[1736520523422,0.42545121,3251.5,3250.6,0.0075]
[1736520523621,0.42545121,3251.5,3250.8,3.07615]
[1736520523784,0.42545121,3251.5,3250.2,0.03077736]
[1736520523988,0.42545121,3251.5,3250.8,0.0075]
[1736520523989,0.387,3251.5,3250.8,0.0075]
[1736520524232,0.03844646,3251.4,3250.9,3.07604]
[1736520524421,0.03844646,3251.4,3250.8,0.0075]
[1736520524624,0.387,3251.5,3250.9,0.015]
[1736520524784,0.387,3251.5,3251.0,0.0075]
[1736520524992,0.03844408,3251.4,3250.7,0.8373]
[1736520525210,0.03844408,3251.4,3250.8,3.09861]
[1736520525422,0.03844408,3251.4,3250.8,0.015]
[1736520525729,0.03844408,3251.4,3250.1,3.07674]
[1736520525730,3.07571,3251.3,3250.2,0.827]
[1736520525926,3.11424473,3251.2,3250.2,0.827]
[1736520526228,0.03845473,3251.2,3250.3,0.0225]
[1736520526440,0.387,3251.5,3250.8,3.0225]
[1736520526748,0.387,3251.5,3250.4,0.02327813]
[1736520526749,5.37,3253.4,3251.4,0.0225]
[1736520527054,0.03843556,3253.3,3252.6,0.015]
[1736520527252,0.03843556,3253.3,3252.4,0.8581]
[1736520527253,0.0384276,3253.6,3253.0,0.0075]
[1736520527525,0.387,3253.8,3253.0,0.0075]
[1736520528089,0.387,3253.8,3252.8,0.03822204]
[1736520528090,0.03842157,3253.7,3253.1,3.0739]
[1736520528220,0.03842157,3253.7,3252.4,0.8581]
[1736520528566,0.03842157,3253.7,3252.4,0.8656]
[1736520528700,3.07365,3253.5,3252.5,3.08954]
[1736520528900,0.03842772,3253.4,3252.4,0.8581]
[1736520529385,0.03842772,3253.4,3252.4,3.93274]
[1736520529386,3.11217772,3253.4,3252.4,3.93274]
[1736520529657,0.03843014,3253.5,3252.9,3.07408]
[1736520529877,1.77430039,3254.2,3253.0,0.015]
[1736520529995,0.03841973,3254.1,3253.6,0.015]
[1736520530199,0.387,3254.1,3253.8,0.015]
[1736520530456,0.03841394,3254.0,3253.1,3.07391]
[1736520530611,0.03841394,3254.0,3251.8,0.25]
[1736520530612,0.03841394,3254.0,3252.5,3.0]
[1736520530790,0.03841394,3254.0,3252.6,3.07438]
[1736520531099,3.07401,3253.1,3251.9,0.803]
[1736520531299,0.03843217,3253.0,3252.2,0.0225]
[1736520531609,6.62332,3253.8,3252.2,6.07483]
[1736520531610,0.387,3252.9,3252.2,6.07483]
[1736520531929,0.42543322,3252.8,3252.3,0.015]
[1736520532118,0.387,3252.7,3252.0,3.07501]
[1736520532316,0.387,3252.6,3252.0,3.07501]
[1736520532516,0.387,3252.6,3252.3,3.07466]
[1736520532733,0.387,3252.6,3252.4,0.02324311]
[1736520532938,0.387,3252.6,3251.9,0.803]
[1736520533437,0.387,3252.6,3251.9,3.0]
[1736520533729,0.03843792,3252.5,3251.9,3.07508]
[1736520534029,0.387,3252.6,3251.7,0.02325146]
[1736520534193,0.387,3252.6,3251.9,3.07508]
[1736520534398,0.03843696,3252.5,3251.8,3.0]
[1736520534932,0.387,3252.6,3251.8,3.0]
[1736520534933,0.03843699,3252.6,3251.8,0.02325364]
[1736520535130,0.387,3253.1,3252.1,3.08234]
[1736520535332,0.03843116,3253.0,3252.3,0.0075]
[1736520535536,0.03843116,3253.0,3252.4,3.07464]
[1736520535735,0.03843116,3253.0,3252.0,3.0]
[1736520536032,0.55,3253.6,3252.0,0.6116511]
[1736520536231,0.55,3253.3,3252.0,0.6116511]
[1736520536534,3.074,3253.1,3252.0,3.07499]
[1736520536735,3.46061,3253.5,3251.9,3.0]
[1736520536736,0.03843553,3253.0,3252.2,0.8552]
[1736520536898,0.387,3253.1,3251.9,0.60764855]
[1736520537097,0.387,3253.0,3252.7,3.07429]
[1736520537299,0.03842759,3253.6,3253.0,0.015]
[1736520537500,0.387,3253.6,3253.3,3.07377]
[1736520537699,0.387,3253.6,3253.1,3.07389]
[1736520537937,0.387,3253.6,3252.7,0.8556]
[1736520538137,0.387,3253.6,3252.9,0.02322132]
[1736520538305,0.387,3253.6,3253.0,0.0075]
[1736520538501,0.387,3253.6,3252.4,3.0]
[1736520538728,0.03842572,3253.5,3252.0,3.075]
[1736520538926,0.03842572,3253.5,3252.0,0.0225]
[1736520539126,3.07407,3253.1,3252.0,3.09749]
[1736520539332,0.34584001,3253.0,3252.0,0.0225]
[1736520539536,0.03843301,3253.0,3252.2,0.0075]
[1736520539736,0.03843301,3253.0,3251.4,0.8556]
[1736520539909,0.55,3252.7,3251.2,3.07576]
[1736520540109,3.0751,3252.0,3251.0,3.07594]
[1736520540388,3.07522,3251.8,3250.7,3.07617]
[1736520540686,3.07543,3251.6,3250.6,3.93186]
[1736520540828,0.03845004,3251.5,3250.8,3.07614]
[1736520541031,0.03845004,3251.5,3250.6,3.93193]
[1736520541252,0.03845004,3251.5,3250.6,0.8556]
[1736520541569,0.382,3251.7,3251.4,3.07558]
[1736520541750,0.382,3251.7,3251.3,0.015]
[1736520541973,0.382,3251.7,3250.7,0.0232804]
[1736520541974,0.382,3251.7,3250.9,0.0075]
[1736520542149,0.03844337,3251.6,3250.6,0.8556]
[1736520542311,0.03844337,3251.6,3250.7,3.07623]
[1736520542508,3.07564,3251.4,3250.3,6.08412]
[1736520542753,0.03845328,3251.3,3250.4,0.02328585]
[1736520542952,0.382,3251.5,3250.5,3.07644]
[1736520543307,0.382,3251.5,3250.8,3.07608]
[1736520543461,0.382,3251.5,3250.9,0.015]
[1736520543855,0.382,3251.5,3250.9,3.09103]
[1736520544055,0.03844715,3251.4,3250.7,3.07622]
[1736520544286,0.03844715,3251.4,3250.5,6.07639]
[1736520544488,0.03844715,3251.4,3250.2,3.94155]
[1736520544809,0.03844715,3251.4,3249.3,0.8779]
[1736520545021,3.0,3251.0,3249.2,3.07767]
[1736520545152,3.07673,3250.2,3249.2,3.07767]
[1736520545351,3.49735845,3250.1,3248.9,3.07789]
[1736520545577,3.07713,3249.8,3248.6,0.32134756]